[Event "FIDE Women World Blitz 2021"]
[Site "Warsaw"]
[Date "2021.12.30"]
[Round "10.4"]
[White "Gil Quilez, Sonia"]
[Black "Smietanska, Wiktoria"]
[Result "1/2-1/2"]
[ECO "E92"]
[WhiteElo "2122"]
[BlackElo "1765"]
[Annotator "NA"]
[PlyCount "130"]
[EventDate "2021.12.29"]
[EventType "swiss"]
[EventCountry "POL"]
[Tiebreak "Cut1 Buchholz"]
[SourceTitle "playchess.com"]
[Source "ChessBase"]
[SourceQuality "1"]
[TimeControl "180+2"]

1. d4 {[%emt 0:00:00]} Nf6 {[%emt 0:00:01]} 2. c4 {[%emt 0:00:01]} g6 {[%emt 0:
00:00]} 3. Nc3 {[%emt 0:00:01]} Bg7 {[%emt 0:00:01]} 4. e4 {[%emt 0:00:01]} d6
{[%emt 0:00:01]} 5. Nf3 {[%emt 0:00:02]} O-O {[%emt 0:00:02]} 6. Be2 {[%emt 0:
00:01]} e5 {[%emt 0:00:01]} 7. Be3 {[%emt 0:00:00]} exd4 {[%emt 0:00:01]} 8.
Nxd4 {[%emt 0:00:01]} Re8 {[%emt 0:00:02]} 9. Qc2 {[%emt 0:00:10]} Nc6 {
[%emt 0:00:24]} 10. Nxc6 {[%emt 0:00:09]} bxc6 {[%emt 0:00:01]} 11. O-O {
[%emt 0:00:08]} Qe7 {[%emt 0:00:03]} 12. Bf3 {[%emt 0:00:07]} Ng4 {[%emt 0:00:
11]} 13. Bf4 {[%emt 0:00:34]} Ne5 {[%emt 0:00:07]} 14. Be2 {[%emt 0:00:05]} Ba6
{[%emt 0:00:05]} 15. b3 {[%emt 0:00:18]} Qf6 {[%emt 0:00:24]} 16. Bd2 {[%emt 0:
00:24]} Rad8 {[%emt 0:00:22]} 17. Rad1 {[%emt 0:00:03]} Qe6 {[%emt 0:00:22]}
18. Na4 {[%emt 0:00:10]} c5 {[%emt 0:00:13]} 19. Nc3 {[%emt 0:00:06]} Nc6 {
[%emt 0:00:08]} 20. Nd5 {[%emt 0:00:28]} Nd4 {[%emt 0:00:09]} 21. Qd3 {[%emt 0:
00:00]} Qxe4 {[%emt 0:00:17]} 22. Qxe4 {[%emt 0:00:02]} Rxe4 {[%emt 0:00:01]}
23. Bd3 {[%emt 0:00:01]} Re5 {[%emt 0:00:22]} 24. Bf4 {[%emt 0:00:06]} Ne2+ {
[%emt 0:00:05]} 25. Bxe2 {[%emt 0:00:04]} Rxe2 {[%emt 0:00:01]} 26. Nxc7 {
[%emt 0:00:01]} Bb7 {[%emt 0:00:07]} 27. Bxd6 {[%emt 0:00:05]} Bd4 {[%emt 0:00:
07]} 28. Bg3 {[%emt 0:00:04]} Rxa2 {[%emt 0:00:03]} 29. Nb5 {[%emt 0:00:01]} a6
{[%emt 0:00:12]} 30. Nd6 {[%emt 0:00:01]} Bc6 {[%emt 0:00:02]} 31. Rfe1 {
[%emt 0:00:10]} h5 {[%emt 0:00:01]} 32. Ne4 {[%emt 0:00:06]} Kg7 {[%emt 0:00:
03]} 33. Bh4 {[%emt 0:00:02]} Re8 {[%emt 0:00:02]} 34. Nd6 {[%emt 0:00:09]}
Rxe1+ {[%emt 0:00:03]} 35. Rxe1 {[%emt 0:00:00]} g5 {[%emt 0:00:03]} 36. Nf5+ {
[%emt 0:00:02]} Kg6 {[%emt 0:00:02]} 37. Ne7+ {[%emt 0:00:01]} Kh6 {[%emt 0:00:
02]} 38. Nxc6 {[%emt 0:00:08]} gxh4 {[%emt 0:00:01]} 39. Nxd4 {[%emt 0:00:01]}
cxd4 {[%emt 0:00:01]} 40. Kf1 {[%emt 0:00:04]} Rb2 {[%emt 0:00:01]} 41. Rd1 {
[%emt 0:00:00]} Rxb3 {[%emt 0:00:03]} 42. Rxd4 {[%emt 0:00:01]} Rc3 {[%emt 0:
00:04]} 43. Rd6+ {[%emt 0:00:01]} Kg5 {[%emt 0:00:02]} 44. Rxa6 {[%emt 0:00:02]
} Rxc4 {[%emt 0:00:01]} 45. Ra5+ {[%emt 0:00:01]} f5 {[%emt 0:00:01]} 46. Ke2 {
[%emt 0:00:02]} Rc2+ {[%emt 0:00:01]} 47. Kf3 {[%emt 0:00:01]} Rc3+ {[%emt 0:
00:00]} 48. Ke2 {[%emt 0:00:01]} Rc2+ {[%emt 0:00:01]} 49. Ke1 {[%emt 0:00:07]}
Rc1+ {[%emt 0:00:01]} 50. Kd2 {[%emt 0:00:05]} Rf1 {[%emt 0:00:03]} 51. Ke2 {
[%emt 0:00:01]} Rh1 {[%emt 0:00:01]} 52. h3 {[%emt 0:00:01]} Rg1 {[%emt 0:00:
02]} 53. Ra8 {[%emt 0:00:02]} Rb1 {[%emt 0:00:04]} 54. Rd8 {[%emt 0:00:02]}
Rb2+ {[%emt 0:00:02]} 55. Rd2 {[%emt 0:00:02]} Rb1 {[%emt 0:00:01]} 56. Kf3 {
[%emt 0:00:02]} Rb3+ {[%emt 0:00:01]} 57. Ke2 {[%emt 0:00:01]} Rb1 {[%emt 0:00:
01]} 58. Ra2 {[%emt 0:00:01]} Rg1 {[%emt 0:00:03]} 59. Kf3 {[%emt 0:00:02]} Rb1
{[%emt 0:00:02]} 60. Ra3 {[%emt 0:00:10]} Rb2 {[%emt 0:00:04]} 61. Re3 {
[%emt 0:00:03]} Rb1 {[%emt 0:00:04]} 62. Re8 {[%emt 0:00:03]} Rb3+ {[%emt 0:00:
01]} 63. Re3 {[%emt 0:00:03]} Rb1 {[%emt 0:00:01]} 64. Ra3 {[%emt 0:00:02]} Rb2
{[%emt 0:00:02]} 65. Re3 {[%emt 0:00:05]} Rb1 {[%emt 0:00:02]} 1/2-1/2

[Event "FIDE Women World Blitz 2021"]
[Site "Warsaw"]
[Date "2021.12.30"]
[Round "10.5"]
[White "Goryachkina, Aleksandra"]
[Black "Kamalidenova, Meruert"]
[Result "1-0"]
[ECO "E81"]
[WhiteElo "2604"]
[BlackElo "2339"]
[Annotator "ChessBase"]
[PlyCount "110"]
[EventDate "2021.12.29"]
[EventType "swiss"]
[EventCountry "POL"]
[Tiebreak "Cut1 Buchholz"]
[SourceTitle "playchess.com"]
[Source "ChessBase"]
[SourceQuality "1"]
[TimeControl "180+2"]

1. d4 {[%emt 0:00:01]} Nf6 {[%emt 0:00:01]} 2. c4 {[%emt 0:00:02]} g6 {[%emt 0:
00:03]} 3. Nc3 {[%emt 0:00:01]} Bg7 {[%emt 0:00:01]} 4. e4 {[%emt 0:00:01]} d6
{[%emt 0:00:01]} 5. f3 {[%emt 0:00:02]} O-O {[%emt 0:00:07]} 6. Be3 {[%emt 0:
00:02]} a6 {[%emt 0:00:02]} 7. Qd2 {[%emt 0:00:06]} b5 {[%emt 0:00:09]} 8. cxb5
{[%emt 0:00:16]} axb5 {[%emt 0:00:01]} 9. Bxb5 {[%emt 0:00:05]} c6 {[%emt 0:00:
02]} 10. Bd3 {[%emt 0:00:08]} Nbd7 {[%emt 0:00:08]} 11. Nge2 {[%emt 0:00:03]}
e5 {[%emt 0:00:12]} 12. O-O {[%emt 0:00:09]} d5 {[%emt 0:00:11]} 13. exd5 {
[%emt 0:00:18]} cxd5 {[%emt 0:00:11]} 14. Kh1 {[%emt 0:00:09]} Bb7 {[%emt 0:00:
10]} 15. Rad1 {[%emt 0:00:14]} e4 {[%emt 0:00:25]} 16. fxe4 {[%emt 0:00:06]}
Nxe4 {[%emt 0:00:35]} 17. Nxe4 {[%emt 0:00:07]} dxe4 {[%emt 0:00:02]} 18. Bc4 {
[%emt 0:00:02]} Nb6 {[%emt 0:00:07]} 19. Bb3 {[%emt 0:00:02]} Nd5 {[%emt 0:00:
07]} 20. Nc3 {[%emt 0:00:15]} Kh8 {[%emt 0:00:15]} 21. Nxd5 {[%emt 0:00:47]}
Bxd5 {[%emt 0:00:03]} 22. Bxd5 {[%emt 0:00:01]} Qxd5 {[%emt 0:00:05]} 23. a3 {
[%emt 0:00:01]} f5 {[%emt 0:00:06]} 24. Rc1 {[%emt 0:00:03]} Rfd8 {[%emt 0:00:
05]} 25. Rc7 {[%emt 0:00:17]} Rac8 {[%emt 0:00:20]} 26. Rxc8 {[%emt 0:00:10]}
Rxc8 {[%emt 0:00:02]} 27. Rc1 {[%emt 0:00:02]} Rd8 {[%emt 0:00:01]} 28. h3 {
[%emt 0:00:04]} Qd6 {[%emt 0:00:08]} 29. b4 {[%emt 0:00:02]} h6 {[%emt 0:00:10]
} 30. Bxh6 {[%emt 0:00:09]} Bxd4 {[%emt 0:00:03]} 31. Bg5 {[%emt 0:00:09]} Bf6
{[%emt 0:00:07]} 32. Qxd6 {[%emt 0:00:04]} Rxd6 {[%emt 0:00:01]} 33. Bxf6+ {
[%emt 0:00:01]} Rxf6 {[%emt 0:00:02]} 34. b5 {[%emt 0:00:00]} Rd6 {[%emt 0:00:
03]} 35. Rb1 {[%emt 0:00:02]} e3 {[%emt 0:00:02]} 36. Re1 {[%emt 0:00:06]} Rd3
{[%emt 0:00:02]} 37. a4 {[%emt 0:00:01]} Rb3 {[%emt 0:00:01]} 38. g3 {[%emt 0:
00:02]} g5 {[%emt 0:00:02]} 39. Kg2 {[%emt 0:00:01]} Kg7 {[%emt 0:00:01]} 40.
Kf3 {[%emt 0:00:01]} Rb4 {[%emt 0:00:02]} 41. Rxe3 {[%emt 0:00:04]} Rxa4 {
[%emt 0:00:01]} 42. Rb3 {[%emt 0:00:02]} Ra7 {[%emt 0:00:02]} 43. b6 {[%emt 0:
00:01]} Rb7 {[%emt 0:00:00]} 44. Rb5 {[%emt 0:00:02]} Kf6 {[%emt 0:00:01]} 45.
Ke3 {[%emt 0:00:05]} Ke6 {[%emt 0:00:02]} 46. Kd4 {[%emt 0:00:01]} Rd7+ {
[%emt 0:00:04]} 47. Kc5 {[%emt 0:00:01]} Rd5+ {[%emt 0:00:06]} 48. Kc6 {
[%emt 0:00:02]} Rd6+ {[%emt 0:00:00]} 49. Kc7 {[%emt 0:00:01]} Rd7+ {[%emt 0:
00:02]} 50. Kc8 {[%emt 0:00:00]} f4 {[%emt 0:00:01]} 51. gxf4 {[%emt 0:00:02]}
gxf4 {[%emt 0:00:01]} 52. b7 {[%emt 0:00:01]} Rf7 {[%emt 0:00:06]} 53. b8=Q {
[%emt 0:00:04]} Rf8+ {[%emt 0:00:02]} 54. Kc7 {[%emt 0:00:01]} Rxb8 {[%emt 0:
00:03]} 55. Kxb8 {[%emt 0:00:03]} Kf6 {[%emt 0:00:05]} 1-0

[Event "FIDE Women World Blitz 2021"]
[Site "Warsaw"]
[Date "2021.12.30"]
[Round "10.5"]
[White "Budkiewicz, Magdalena"]
[Black "Kazarian, Anna-Maja"]
[Result "0-1"]
[ECO "C02"]
[WhiteElo "1624"]
[BlackElo "2138"]
[Annotator "NA"]
[PlyCount "72"]
[EventDate "2021.12.29"]
[EventType "swiss"]
[EventCountry "POL"]
[Tiebreak "Cut1 Buchholz"]
[SourceTitle "playchess.com"]
[Source "ChessBase"]
[SourceQuality "1"]
[TimeControl "180+2"]

1. e4 {[%emt 0:00:01]} e6 {[%emt 0:00:00]} 2. d4 {[%emt 0:00:01]} d5 {[%emt 0:
00:01]} 3. e5 {[%emt 0:00:01]} c5 {[%emt 0:00:01]} 4. Nf3 {[%emt 0:00:01]} Bd7
{[%emt 0:00:05]} 5. Bd3 {[%emt 0:00:04]} Qb6 {[%emt 0:00:06]} 6. Nbd2 {[%emt 0:
00:26]} cxd4 {[%emt 0:00:15]} 7. O-O {[%emt 0:00:05]} Nc6 {[%emt 0:00:10]} 8.
Nb3 {[%emt 0:00:02]} Nge7 {[%emt 0:00:14]} 9. Bf4 {[%emt 0:00:01]} Ng6 {
[%emt 0:00:12]} 10. Bg3 {[%emt 0:00:02]} Be7 {[%emt 0:00:03]} 11. Re1 {[%emt 0:
00:02]} a5 {[%emt 0:00:26]} 12. a4 {[%emt 0:00:06]} Bb4 {[%emt 0:00:08]} 13.
Rf1 {[%emt 0:00:22]} Bc5 {[%emt 0:00:04]} 14. h4 {[%emt 0:00:15]} Nge7 {
[%emt 0:00:06]} 15. Re1 {[%emt 0:00:15]} Rc8 {[%emt 0:00:04]} 16. h5 {[%emt 0:
00:09]} h6 {[%emt 0:00:02]} 17. Qe2 {[%emt 0:00:04]} Nb4 {[%emt 0:00:07]} 18.
Bh4 {[%emt 0:00:34]} Nxd3 {[%emt 0:00:12]} 19. Qxd3 {[%emt 0:00:07]} Nf5 {
[%emt 0:00:02]} 20. Red1 {[%emt 0:00:17]} Nxh4 {[%emt 0:00:14]} 21. Nxh4 {
[%emt 0:00:01]} O-O {[%emt 0:00:12]} 22. Nf3 {[%emt 0:00:01]} f6 {[%emt 0:00:
12]} 23. exf6 {[%emt 0:00:24]} Rxf6 {[%emt 0:00:01]} 24. Ne5 {[%emt 0:00:01]}
Be8 {[%emt 0:00:02]} 25. Ng6 {[%emt 0:00:01]} Bxg6 {[%emt 0:00:09]} 26. hxg6 {
[%emt 0:00:01]} e5 {[%emt 0:00:07]} 27. Qh3 {[%emt 0:00:03]} Qe6 {[%emt 0:00:
19]} 28. Qg3 {[%emt 0:00:22]} Rxg6 {[%emt 0:00:02]} 29. Qd3 {[%emt 0:00:03]} e4
{[%emt 0:00:04]} 30. Qb5 {[%emt 0:00:01]} b6 {[%emt 0:00:11]} 31. Nxd4 {
[%emt 0:00:03]} Bxd4 {[%emt 0:00:02]} 32. Rxd4 {[%emt 0:00:01]} Rc5 {[%emt 0:
00:04]} 33. Qa6 {[%emt 0:00:05]} Kh7 {[%emt 0:00:02]} 34. Qb7 {[%emt 0:00:01]}
Rxc2 {[%emt 0:00:01]} 35. Rxd5 {[%emt 0:00:03]} e3 {[%emt 0:00:04]} 36. f3 {
[%emt 0:00:04]} Rgxg2+ {[%emt 0:00:02]} 0-1

[Event "FIDE Women World Blitz 2021"]
[Site "Warsaw"]
[Date "2021.12.30"]
[Round "10.6"]
[White "Muzychuk, Anna"]
[Black "Muzychuk, Mariya"]
[Result "1/2-1/2"]
[ECO "C54"]
[WhiteElo "2533"]
[BlackElo "2536"]
[Annotator "ChessBase"]
[PlyCount "34"]
[EventDate "2021.12.29"]
[EventType "swiss"]
[EventCountry "POL"]
[Tiebreak "Cut1 Buchholz"]
[SourceTitle "playchess.com"]
[Source "ChessBase"]
[SourceQuality "1"]
[TimeControl "180+2"]

1. e4 {[%emt 0:00:01]} e5 {[%emt 0:00:02]} 2. Nf3 {[%emt 0:00:01]} Nc6 {
[%emt 0:00:02]} 3. Bc4 {[%emt 0:00:01]} Nf6 {[%emt 0:00:03]} 4. d3 {[%emt 0:00:
07]} Bc5 {[%emt 0:00:06]} 5. c3 {[%emt 0:00:02]} d6 {[%emt 0:00:08]} 6. O-O {
[%emt 0:00:04]} O-O {[%emt 0:00:05]} 7. a4 {[%emt 0:00:04]} a6 {[%emt 0:00:08]}
8. h3 {[%emt 0:00:20]} h6 {[%emt 0:00:12]} 9. Bb3 {[%emt 0:00:32]} Ba7 {
[%emt 0:00:17]} 10. Nbd2 {[%emt 0:00:04]} Nh5 {[%emt 0:00:23]} 11. Re1 {
[%emt 0:00:11]} Qf6 {[%emt 0:00:15]} 12. Nf1 {[%emt 0:00:52]} Qg6 {[%emt 0:00:
03]} 13. Nh4 {[%emt 0:00:05]} Qf6 {[%emt 0:00:05]} 14. Nf3 {[%emt 0:00:15]} Qg6
{[%emt 0:00:05]} 15. Nh4 {[%emt 0:00:02]} Qf6 {[%emt 0:00:04]} 16. Nf3 {
[%emt 0:00:01]} Qg6 {[%emt 0:00:03]} 17. Nh4 {[%emt 0:00:01]} Qf6 {[%emt 0:00:
03]} 1/2-1/2

[Event "FIDE Women World Blitz 2021"]
[Site "Warsaw"]
[Date "2021.12.30"]
[Round "10.6"]
[White "Jakubowska, Anna"]
[Black "Szczotka, Klara"]
[Result "0-1"]
[ECO "B24"]
[WhiteElo "2106"]
[BlackElo "1584"]
[Annotator "NA"]
[PlyCount "81"]
[EventDate "2021.12.29"]
[EventType "swiss"]
[EventCountry "POL"]
[Tiebreak "Cut1 Buchholz"]
[SourceTitle "playchess.com"]
[Source "ChessBase"]
[SourceQuality "1"]
[TimeControl "180+2"]

1. e4 {[%emt 0:00:01]} c5 {[%emt 0:00:01]} 2. Nc3 {[%emt 0:00:02]} e6 {[%emt 0:
00:02]} 3. g3 {[%emt 0:00:01]} Nc6 {[%emt 0:00:01]} 4. Bg2 {[%emt 0:00:01]} Nf6
{[%emt 0:00:01]} 5. d3 {[%emt 0:00:01]} d6 {[%emt 0:00:01]} 6. f4 {[%emt 0:00:
08]} Bd7 {[%emt 0:00:07]} 7. Nf3 {[%emt 0:00:04]} Qc7 {[%emt 0:00:07]} 8. d4 {
[%emt 0:00:05]} cxd4 {[%emt 0:00:02]} 9. Nxd4 {[%emt 0:00:01]} a6 {[%emt 0:00:
05]} 10. Be3 {[%emt 0:00:16]} Rc8 {[%emt 0:00:01]} 11. O-O {[%emt 0:00:05]} Be7
{[%emt 0:00:06]} 12. Kh1 {[%emt 0:00:08]} Nxd4 {[%emt 0:00:15]} 13. Bxd4 {
[%emt 0:00:02]} Bc6 {[%emt 0:00:00]} 14. f5 {[%emt 0:00:15]} e5 {[%emt 0:00:02]
} 15. Be3 {[%emt 0:00:07]} b5 {[%emt 0:00:29]} 16. a3 {[%emt 0:00:01]} Qb7 {
[%emt 0:00:01]} 17. Qd3 {[%emt 0:00:10]} h5 {[%emt 0:00:19]} 18. Bg5 {[%emt 0:
00:12]} Nh7 {[%emt 0:00:33]} 19. Bxe7 {[%emt 0:00:17]} Kxe7 {[%emt 0:00:06]}
20. Rad1 {[%emt 0:00:08]} Rcd8 {[%emt 0:00:04]} 21. Qe3 {[%emt 0:00:25]} b4 {
[%emt 0:00:51]} 22. axb4 {[%emt 0:00:10]} Qxb4 {[%emt 0:00:01]} 23. b3 {
[%emt 0:00:11]} Nf6 {[%emt 0:00:04]} 24. Rd3 {[%emt 0:00:12]} Ng4 {[%emt 0:00:
15]} 25. Qa7+ {[%emt 0:00:01]} Rd7 {[%emt 0:00:03]} 26. Qxa6 {[%emt 0:00:08]}
Qc5 {[%emt 0:00:05]} 27. h3 {[%emt 0:00:21]} Nf6 {[%emt 0:00:05]} 28. b4 {
[%emt 0:00:03]} Qxb4 {[%emt 0:00:06]} 29. Qxc6 {[%emt 0:00:02]} Rb8 {[%emt 0:
00:01]} 30. Rb1 {[%emt 0:00:06]} Qxb1+ {[%emt 0:00:02]} 31. Nxb1 {[%emt 0:00:
01]} Rxb1+ {[%emt 0:00:01]} 32. Kh2 {[%emt 0:00:01]} h4 {[%emt 0:00:03]} 33. g4
{[%emt 0:00:03]} Nh7 {[%emt 0:00:01]} 34. Rb3 {[%emt 0:00:05]} Rd1 {[%emt 0:00:
02]} 35. Rb7 {[%emt 0:00:01]} Rxb7 {[%emt 0:00:03]} 36. Qxb7+ {[%emt 0:00:01]}
Kf6 {[%emt 0:00:00]} 37. Qd7 {[%emt 0:00:04]} Kg5 {[%emt 0:00:05]} 38. c4 {
[%emt 0:00:04]} Rd2 {[%emt 0:00:03]} 39. c5 {[%emt 0:00:02]} Kf4 {[%emt 0:00:
03]} 40. c6 {[%emt 0:00:09]} Ng5 {[%emt 0:00:01]} 41. Kh1 {[%emt 0:00:08]} 0-1

[Event "FIDE Women World Blitz 2021"]
[Site "Warsaw"]
[Date "2021.12.30"]
[Round "10.7"]
[White "Paehtz, Elisabeth"]
[Black "Maltsevskaya, Aleksandra"]
[Result "1/2-1/2"]
[ECO "A48"]
[WhiteElo "2485"]
[BlackElo "2411"]
[Annotator "ChessBase"]
[PlyCount "96"]
[EventDate "2021.12.29"]
[EventType "swiss"]
[EventCountry "POL"]
[Tiebreak "Cut1 Buchholz"]
[SourceTitle "playchess.com"]
[Source "ChessBase"]
[SourceQuality "1"]
[TimeControl "180+2"]

1. d4 {[%emt 0:00:01]} Nf6 {[%emt 0:00:02]} 2. Nf3 {[%emt 0:00:01]} b6 {
[%emt 0:00:01]} 3. c3 {[%emt 0:00:02]} g6 {[%emt 0:00:03]} 4. Bg5 {[%emt 0:00:
01]} Bg7 {[%emt 0:00:02]} 5. Nbd2 {[%emt 0:00:02]} Bb7 {[%emt 0:00:01]} 6. e3 {
[%emt 0:00:01]} c5 {[%emt 0:00:09]} 7. Be2 {[%emt 0:00:05]} O-O {[%emt 0:00:05]
} 8. O-O {[%emt 0:00:02]} d6 {[%emt 0:00:04]} 9. a4 {[%emt 0:00:02]} a6 {
[%emt 0:00:01]} 10. Re1 {[%emt 0:00:06]} Nbd7 {[%emt 0:00:17]} 11. Qb3 {
[%emt 0:00:03]} Qc7 {[%emt 0:00:18]} 12. Bh4 {[%emt 0:00:03]} e5 {[%emt 0:00:
22]} 13. dxe5 {[%emt 0:00:12]} dxe5 {[%emt 0:00:06]} 14. Bc4 {[%emt 0:00:17]}
h6 {[%emt 0:00:11]} 15. e4 {[%emt 0:00:04]} Rab8 {[%emt 0:00:12]} 16. Qc2 {
[%emt 0:00:18]} Kh7 {[%emt 0:00:29]} 17. Bxf6 {[%emt 0:00:22]} Nxf6 {[%emt 0:
00:04]} 18. Nf1 {[%emt 0:00:04]} b5 {[%emt 0:00:02]} 19. Ba2 {[%emt 0:00:17]}
Bc6 {[%emt 0:00:10]} 20. Ng3 {[%emt 0:00:10]} bxa4 {[%emt 0:00:14]} 21. Bc4 {
[%emt 0:00:01]} Rb6 {[%emt 0:00:02]} 22. Ra2 {[%emt 0:00:11]} Bb5 {[%emt 0:00:
09]} 23. Nd2 {[%emt 0:00:02]} Rd8 {[%emt 0:00:03]} 24. Bf1 {[%emt 0:00:03]}
Rdb8 {[%emt 0:00:29]} 25. Nc4 {[%emt 0:00:06]} R6b7 {[%emt 0:00:04]} 26. Ne3 {
[%emt 0:00:04]} Bxf1 {[%emt 0:00:04]} 27. Ngxf1 {[%emt 0:00:05]} a3 {[%emt 0:
00:02]} 28. bxa3 {[%emt 0:00:02]} Rb3 {[%emt 0:00:05]} 29. Nd2 {[%emt 0:00:02]}
R3b7 {[%emt 0:00:02]} 30. Ndc4 {[%emt 0:00:02]} Qc6 {[%emt 0:00:02]} 31. f3 {
[%emt 0:00:02]} Qe8 {[%emt 0:00:05]} 32. Nd6 {[%emt 0:00:02]} Qe6 {[%emt 0:00:
01]} 33. Nxb7 {[%emt 0:00:02]} Rxb7 {[%emt 0:00:00]} 34. Rb2 {[%emt 0:00:02]}
Rc7 {[%emt 0:00:05]} 35. Qe2 {[%emt 0:00:04]} h5 {[%emt 0:00:02]} 36. Qc4 {
[%emt 0:00:01]} Qd7 {[%emt 0:00:02]} 37. Rd1 {[%emt 0:00:01]} Qc6 {[%emt 0:00:
02]} 38. Nd5 {[%emt 0:00:06]} Nxd5 {[%emt 0:00:02]} 39. Rxd5 {[%emt 0:00:01]}
Qf6 {[%emt 0:00:02]} 40. Rxc5 {[%emt 0:00:23]} Qg5 {[%emt 0:00:01]} 41. Rxc7 {
[%emt 0:00:13]} Qc1+ {[%emt 0:00:01]} 42. Qf1 {[%emt 0:00:06]} Qxb2 {[%emt 0:
00:01]} 43. Rxf7 {[%emt 0:00:06]} Qxc3 {[%emt 0:00:03]} 44. h4 {[%emt 0:00:14]}
Qxa3 {[%emt 0:00:01]} 45. Qc4 {[%emt 0:00:04]} Qa5 {[%emt 0:00:03]} 46. Qc7 {
[%emt 0:00:03]} Qe1+ {[%emt 0:00:01]} 47. Kh2 {[%emt 0:00:02]} Qxh4+ {[%emt 0:
00:01]} 48. Kg1 {[%emt 0:00:00]} Qe1+ {[%emt 0:00:01]} 1/2-1/2

[Event "FIDE Women World Blitz 2021"]
[Site "Warsaw"]
[Date "2021.12.30"]
[Round "10.8"]
[White "Bivol, Alina"]
[Black "Bodnaruk, Anastasia"]
[Result "1-0"]
[ECO "D02"]
[WhiteElo "2377"]
[BlackElo "2396"]
[Annotator "NA"]
[PlyCount "65"]
[EventDate "2021.12.29"]
[EventType "swiss"]
[EventCountry "POL"]
[Tiebreak "Cut1 Buchholz"]
[SourceTitle "playchess.com"]
[Source "ChessBase"]
[SourceQuality "1"]
[TimeControl "180+2"]

1. d4 {[%emt 0:00:02]} Nf6 {[%emt 0:00:01]} 2. Nf3 {[%emt 0:00:01]} g6 {
[%emt 0:00:01]} 3. g3 {[%emt 0:00:02]} Bg7 {[%emt 0:00:01]} 4. Bg2 {[%emt 0:00:
01]} d5 {[%emt 0:00:24]} 5. O-O {[%emt 0:00:05]} O-O {[%emt 0:00:01]} 6. b3 {
[%emt 0:00:03]} b6 {[%emt 0:00:17]} 7. c4 {[%emt 0:00:18]} Bb7 {[%emt 0:00:05]}
8. Ne5 {[%emt 0:00:10]} e6 {[%emt 0:00:11]} 9. Nc3 {[%emt 0:00:08]} Ne4 {
[%emt 0:00:13]} 10. Bb2 {[%emt 0:00:17]} Nxc3 {[%emt 0:00:22]} 11. Bxc3 {
[%emt 0:00:01]} f6 {[%emt 0:00:02]} 12. Nd3 {[%emt 0:00:09]} f5 {[%emt 0:00:20]
} 13. Nf4 {[%emt 0:00:22]} Re8 {[%emt 0:00:03]} 14. Rc1 {[%emt 0:00:06]} g5 {
[%emt 0:00:19]} 15. Nd3 {[%emt 0:00:07]} Nd7 {[%emt 0:00:05]} 16. e3 {[%emt 0:
00:10]} Nf6 {[%emt 0:00:04]} 17. Bb2 {[%emt 0:00:08]} Rc8 {[%emt 0:00:12]} 18.
c5 {[%emt 0:00:23]} Ba6 {[%emt 0:00:10]} 19. Re1 {[%emt 0:00:07]} Bxd3 {
[%emt 0:00:02]} 20. Qxd3 {[%emt 0:00:01]} c6 {[%emt 0:00:10]} 21. cxb6 {
[%emt 0:00:06]} axb6 {[%emt 0:00:00]} 22. a4 {[%emt 0:00:05]} Bf8 {[%emt 0:00:
05]} 23. Rc2 {[%emt 0:00:03]} Qd7 {[%emt 0:00:01]} 24. Rec1 {[%emt 0:00:05]} g4
{[%emt 0:00:06]} 25. Qa6 {[%emt 0:00:03]} c5 {[%emt 0:00:12]} 26. dxc5 {
[%emt 0:00:03]} Ne4 {[%emt 0:00:05]} 27. c6 {[%emt 0:00:03]} Qc7 {[%emt 0:00:
02]} 28. Bd4 {[%emt 0:00:08]} Rb8 {[%emt 0:00:03]} 29. Ba1 {[%emt 0:00:15]} Bc5
{[%emt 0:00:05]} 30. Qd3 {[%emt 0:00:07]} Kf7 {[%emt 0:00:10]} 31. b4 {[%emt 0:
00:06]} Bf8 {[%emt 0:00:05]} 32. Qd4 {[%emt 0:00:03]} Be7 {[%emt 0:00:06]} 33.
Qg7# {[%emt 0:00:02]} 1-0